bitfinex/quotes_SOLUSD_20250814
["timestamp","ask_amount","ask_price","bid_price","bid_amount"]
[1755158938600,10.45997505,203.96,203.91,30.9339465]
[1755158938911,0.69,203.95,203.91,30.9339465]
[1755158939074,0.69,203.95,203.91,4.9339465]
[1755158939802,9.76997505,204.0,203.91,0.03]
[1755158939974,0.69,203.99,203.91,0.7]
[1755158940487,0.7,204.04,203.92,41.59660395]
[1755158940684,1e-08,204.05,203.93,0.69]
[1755158941000,1e-08,204.05,203.98,15.10621557]
[1755158941196,0.7,204.04,203.97,26.0]
[1755158941375,10.46997505,204.04,203.95,26.0]
[1755158941576,9.76997505,204.04,203.95,26.0]
[1755158941771,10.46997505,204.03,203.95,30.90308438]
[1755158941994,9.76997505,204.0,203.92,4.9037092]
[1755158942189,0.7,204.0,203.92,30.9037092]
[1755158942892,0.7,204.0,203.94,26.0]
[1755158943091,0.7,204.04,203.96,26.0]
[1755158943879,10.46997505,204.04,203.96,4.90270795]
[1755158944097,1e-08,204.05,203.95,26.0]
[1755158944098,9.76997505,204.02,203.95,26.0]
[1755158944394,0.7,204.01,203.95,26.0]
[1755158944795,0.70000001,204.05,203.96,26.0]
[1755158944977,79.6,204.04,203.96,26.0]
[1755158945378,1e-08,204.05,203.97,15.10621557]
[1755158945596,1e-08,204.05,203.98,0.69]
[1755158945785,1e-08,204.05,204.0,26.0]
[1755158945987,1e-08,204.05,204.01,4.9017205]
[1755158946196,10.46997505,204.04,203.95,0.69]
[1755158946400,10.46997505,204.04,203.96,30.90292214]
[1755158946602,0.7,204.04,203.96,30.90292214]
[1755158947089,1e-08,204.05,203.99,26.0]
[1755158948185,1e-08,204.05,203.99,30.90205986]
[1755158948805,1e-08,204.05,204.0,0.69]
[1755158950311,1e-08,204.05,204.04,26.0]
[1755158951909,1e-08,204.05,204.03,26.0]
[1755158952424,1e-08,204.05,203.97,4.90268176]
[1755158952620,0.70000001,204.05,203.97,4.90268176]
[1755158952996,1e-08,204.05,203.97,17.15938617]
[1755158953192,1e-08,204.05,204.02,26.0]
[1755158954286,1e-08,204.05,203.96,38.32]
[1755158954490,1e-08,204.05,203.99,0.69]
[1755158954691,1e-08,204.05,204.0,26.0]
[1755158954892,1e-08,204.05,204.0,26.69]
[1755158955093,1e-08,204.05,204.01,15.10621557]
[1755158955401,1e-08,204.05,204.04,26.0]
[1755158956005,1e-08,204.05,203.97,17.15881464]
[1755158956206,1e-08,204.05,204.0,26.0]
[1755158956417,1e-08,204.05,203.97,12.25613288]
[1755158956720,1e-08,204.05,204.0,26.0]
[1755158957519,1e-08,204.05,204.01,0.69]
[1755158957718,1e-08,204.05,204.02,0.69]
[1755158957902,1e-08,204.05,204.03,0.69]
[1755158958108,1e-08,204.05,204.04,0.69]
[1755158958514,1e-08,204.05,204.04,26.0]
[1755158958697,1e-08,204.05,203.99,15.10621557]
[1755158958698,1e-08,204.05,203.98,0.69]
[1755158958903,1e-08,204.05,203.98,5.59244141]
[1755158959216,1e-08,204.05,203.98,31.59244141]
[1755158959598,1e-08,204.05,203.98,17.15854494]
[1755158959802,1e-08,204.05,203.99,26.69]
[1755158960518,1e-08,204.05,204.0,4.90196078]
[1755158961020,1e-08,204.05,204.01,0.69]
[1755158961220,1e-08,204.05,204.0,4.90196078]
[1755158961221,1e-08,204.05,204.02,0.69]
[1755158962332,1e-08,204.05,204.03,0.69]
[1755158962635,1e-08,204.05,204.04,5.5909998]
[1755158963007,1e-08,204.05,204.04,4.9009998]
[1755158963319,1e-08,204.05,204.04,5.5909998]
[1755158964409,1e-08,204.05,204.01,4.9017205]
[1755158964627,1e-08,204.05,204.02,0.69]
[1755158964930,1e-08,204.05,204.03,0.69]
[1755158965133,1e-08,204.05,204.01,43.15602175]
[1755158965435,1e-08,204.05,204.04,26.0]
[1755158965737,0.06,204.1,204.09,15.10621557]
[1755158966036,1e-08,204.15,204.12,41.10621557]
[1755158966206,1e-08,204.15,204.13,38.48988389]
[1755158966406,1e-08,204.17,204.16,26.0]
[1755158966622,1e-08,204.18,204.17,46.00409478]
[1755158966800,1e-08,204.18,204.17,46.69409478]
[1755158967226,1e-08,204.19,204.17,47.1838827]
[1755158967451,1e-08,204.19,204.17,84.5738827]
[1755158967668,1e-08,204.19,204.18,0.69]
[1755158968847,1e-08,204.19,204.18,20.6938549]
[1755158969968,1e-08,204.19,204.18,58.7338549]
[1755158970530,0.2,204.23,204.22,41.10621557]
[1755158970736,0.2,204.23,204.22,79.74621557]
[1755158970942,0.2,204.23,204.22,84.64289562]
[1755158971441,0.2,204.23,204.22,4.89668005]
[1755158972754,10.63997505,204.23,204.16,4.89811912]
[1755158972959,9.76997505,204.2,204.14,4.89836998]
[1755158973135,10.43997505,204.19,204.14,4.89836998]
[1755158973338,0.67,204.19,204.14,4.89836998]
[1755158973534,10.43997505,204.22,204.14,5.55836998]
[1755158973948,0.67,204.22,204.15,15.10621557]
[1755158974767,0.2,204.23,204.18,26.0]
[1755158975067,0.2,204.23,204.2,15.10621557]
[1755158975279,0.87,204.23,204.2,26.0]
[1755158975565,0.2,204.23,204.2,26.0]
[1755158975969,0.2,204.23,204.2,26.66]
[1755158976159,0.2,204.23,204.21,15.76621557]
[1755158976467,0.2,204.23,204.22,41.76621557]
[1755158977064,0.2,204.23,204.22,46.00289562]
[1755158977753,0.2,204.23,204.21,37.9]
[1755158977754,0.2,204.23,204.15,12.2457099]
[1755158978079,0.87,204.23,204.16,52.96621557]
[1755158978249,0.87,204.23,204.16,78.96621557]
[1755158978444,0.87,204.23,204.16,57.86433469]
[1755158979269,0.67,204.21,204.15,26.0]
[1755158979471,10.43997505,204.21,204.15,26.0]
[1755158979966,0.67,204.21,204.16,26.0]
[1755158980377,0.2,204.23,204.16,26.0]
[1755158980670,9.76997505,204.2,204.14,4.898599]
[1755158980873,9.76997505,204.16,204.12,4.89885736]
[1755158981079,0.67,204.15,204.11,26.0]
[1755158981367,9.76997505,204.19,204.11,26.0]
[1755158981546,0.67,204.17,204.11,26.0]
[1755158981747,0.67,204.17,204.09,0.66]
[1755158981990,10.43997505,204.17,204.08,20.00625477]
[1755158982187,0.67,204.17,204.08,46.00625477]
[1755158982381,0.67,204.17,204.08,20.00625477]
[1755158982908,10.43997505,204.17,204.08,20.00625477]
[1755158983070,0.67,204.16,204.07,20.00649488]
[1755158983269,0.67,204.16,204.1,26.0]
[1755158984693,0.67,204.16,204.08,26.0]
[1755158984863,9.76997505,204.14,204.08,26.0]
[1755158985064,0.67,204.16,204.09,4.8997991]
[1755158987090,0.67,204.16,204.08,4.9000392]
[1755158988279,0.67,204.16,204.08,17.1501372]
[1755158988870,0.67,204.16,204.09,0.66]
[1755158989278,0.67,204.16,204.1,4.89955903]
[1755158991965,0.67,204.19,204.1,17.14845662]
[1755158992196,0.67,204.19,204.1,17.80845662]
[1755158992495,80.47,204.23,204.14,26.0]
[1755158992706,0.87,204.23,204.15,0.66]
[1755158993504,0.06,204.24,204.19,26.0]
[1755158993666,0.06,204.24,204.23,26.0]
[1755158995671,0.06,204.24,204.23,31.55644028]
[1755158995891,1e-08,204.24,204.23,46.66265585]
[1755158996879,0.06,204.28,204.23,58.90375656]
[1755158997088,0.06,204.28,204.25,15.10621557]
[1755158997287,0.73,204.37,204.28,15.10621557]
[1755158997523,0.73,204.37,204.27,26.0]
[1755158997524,0.06,204.37,204.3,15.10621557]
[1755158997684,0.06,204.37,204.31,4.89452302]
[1755158998111,0.06,204.37,204.31,5.55452302]
[1755158998291,0.06,204.37,204.32,0.66]
[1755158999789,0.06,204.37,204.33,4.89404394]
[1755159000192,0.67,204.34,204.29,4.8950022]
[1755159000510,0.7,204.33,204.29,4.8950022]
[1755159000680,0.7,204.32,204.26,4.89572113]
[1755159001314,0.7,204.33,204.26,4.89572113]
[1755159001688,0.7,204.33,204.26,17.13502397]
[1755159002000,0.7,204.33,204.26,12.95930284]
[1755159002205,0.7,204.33,204.27,15.10621557]
[1755159002699,0.06,204.35,204.29,26.0]
[1755159003303,9.76997505,204.32,204.26,26.0]
[1755159003507,9.76997505,204.3,204.25,4.89596083]
[1755159003710,0.7,204.29,204.25,4.89596083]
[1755159003894,0.7,204.29,204.24,4.89620054]
[1755159004100,9.76997505,204.3,204.24,4.89620054]
[1755159004297,9.76997505,204.29,204.24,4.89620054]
[1755159004519,0.7,204.32,204.25,0.72]
[1755159004688,0.7,204.32,204.24,4.89620054]
[1755159004893,9.76997505,204.31,204.24,4.89620054]
[1755159005289,0.7,204.3,204.24,4.89620054]
[1755159006093,0.7,204.3,204.23,4.89644028]
[1755159008708,10.46997505,204.3,204.23,4.89644028]
[1755159008904,9.76997505,204.27,204.2,26.0]
[1755159009101,0.7,204.26,204.19,0.72]
[1755159009316,0.7,204.26,204.2,4.89715964]
[1755159009826,10.46997505,204.26,204.2,4.89715964]
[1755159010031,10.46997505,204.25,204.17,4.89787921]
[1755159010325,0.7,204.25,204.17,4.89787921]
[1755159011625,9.76997505,204.29,204.18,26.0]
[1755159011922,0.7,204.28,204.2,26.0]
[1755159012330,79.6,204.3,204.21,0.72]
[1755159012505,0.7,204.29,204.21,0.72]
[1755159013413,0.7,204.29,204.22,4.89668005]
[1755159014012,9.76997505,204.25,204.2,26.0]
[1755159014214,0.7,204.24,204.2,26.0]
[1755159014628,0.7,204.27,204.21,0.72]
[1755159014944,9.76997505,204.26,204.18,4.89744055]
[1755159015109,10.46997505,204.25,204.18,4.89744055]
[1755159015511,0.7,204.25,204.18,4.89744055]
[1755159016013,0.7,204.25,204.19,26.0]
[1755159016236,47.30997505,204.28,204.2,0.72]
[1755159016408,37.54,204.28,204.2,0.72]
[1755159017512,37.54,204.28,204.21,4.89691983]
[1755159019442,0.7,204.27,204.21,4.89691983]
[1755159019963,0.7,204.27,204.2,5.61715915]
[1755159020151,9.76997505,204.26,204.18,26.0]
[1755159020448,0.7,204.25,204.16,4.89811912]
[1755159020655,0.7,204.25,204.17,26.0]
[1755159020861,9.76997505,204.21,204.15,0.03]
[1755159021035,9.76997505,204.19,204.15,0.03]
[1755159021237,0.7,204.2,204.15,4.9283362]
[1755159021434,0.7,204.19,204.15,0.03]
[1755159021740,0.7,204.18,204.15,0.03]
[1755159021932,0.7,204.22,204.15,0.75]
[1755159022247,0.7,204.22,204.15,0.03]
[1755159022248,38.24,204.22,204.15,0.03]
[1755159022545,0.7,204.25,204.16,0.72]
[1755159022722,38.24,204.25,204.16,0.72]
[1755159022922,37.54,204.25,204.2,26.0]
[1755159023152,0.7,204.29,204.21,0.72]
[1755159023768,0.7,204.29,204.22,4.89668005]
[1755159024651,37.54,204.32,204.23,0.72]
[1755159024855,0.7,204.31,204.23,0.72]
[1755159025164,9.76997505,204.3,204.22,4.89668005]
[1755159025462,0.7,204.29,204.22,4.89668005]
[1755159025967,0.7,204.29,204.21,4.89691983]
[1755159026354,10.46997505,204.29,204.21,30.89691983]
[1755159026669,9.76997505,204.27,204.21,4.89691983]
[1755159026845,10.46997505,204.27,204.21,4.89691983]
[1755159027458,0.7,204.26,204.21,4.89691983]
[1755159027785,0.7,204.26,204.19,4.89739948]
[1755159027944,9.76997505,204.3,204.2,0.72]
[1755159028151,37.52,204.3,204.2,0.72]
[1755159029380,9.76997505,204.28,204.19,17.14089818]
[1755159029573,0.7,204.27,204.21,26.0]
[1755159029750,0.7,204.27,204.19,5.61739948]
[1755159030764,79.6,204.34,204.19,30.89739948]
[1755159030974,0.7,204.32,204.23,26.0]
[1755159031370,0.7,204.32,204.24,0.71]
[1755159031884,0.7,204.32,204.25,4.89596083]
[1755159032176,117.12,204.34,204.26,0.71]
[1755159033855,0.06,204.35,204.3,26.0]
[1755159034076,0.06,204.35,204.31,15.81621557]
[1755159034272,0.06,204.35,204.32,0.71]
[1755159034579,0.06,204.35,204.33,0.71]
[1755159034779,0.06,204.35,204.34,0.71]
[1755159036065,0.06,204.35,204.34,5.60380444]
[1755159037001,0.06,204.35,204.34,30.89380444]
[1755159037666,0.76,204.35,204.18,10.03]
[1755159037885,9.76997505,204.32,204.2,54.64005875]
[1755159038059,0.76,204.35,204.2,54.64005875]
[1755159038060,9.76997505,204.3,204.2,43.10715964]
[1755159038277,10.46997505,204.31,204.21,15.81621557]
[1755159038478,9.76997505,204.29,204.21,0.71]
[1755159038704,0.7,204.28,204.21,0.71]
[1755159039012,0.7,204.28,204.2,4.89715964]
[1755159039180,10.46997505,204.28,204.19,15.10621557]
[1755159039503,0.7,204.28,204.2,0.71]
[1755159040076,0.7,204.31,204.21,20.0031354]
[1755159040510,0.7,204.31,204.22,0.71]
[1755159040878,0.7,204.31,204.24,26.0]
[1755159041084,0.7,204.34,204.25,15.81621557]
[1755159041500,0.06,204.35,204.29,15.10621557]
[1755159041810,0.06,204.35,204.28,26.71]
[1755159041976,0.06,204.35,204.29,4.8950022]
[1755159042806,0.06,204.35,204.3,15.81621557]
[1755159042981,0.06,204.35,204.31,0.71]
[1755159043912,0.06,204.35,204.32,4.89428347]
[1755159044392,0.06,204.35,204.33,26.0]
[1755159044776,0.06,204.35,204.34,4.89380444]
[1755159046114,0.06,204.35,204.33,4.89404394]
[1755159046622,0.06,204.35,204.32,30.89428267]
[1755159046914,0.06,204.35,204.3,4.8945253]
[1755159047122,0.76,204.35,204.3,4.8945253]
[1755159047284,0.06,204.35,204.3,5.6045253]
[1755159047484,0.06,204.35,204.31,26.0]
[1755159048001,0.06,204.35,204.32,4.89428347]
[1755159048319,0.06,204.35,204.32,5.60428347]
[1755159049598,0.06,204.35,204.31,26.0]
[1755159049810,0.7,204.34,204.31,26.0]
[1755159050195,0.06,204.35,204.31,30.8944899]
[1755159050397,0.76,204.35,204.31,26.0]
[1755159050616,0.06,204.35,204.31,30.89448795]
[1755159051120,0.06,204.35,204.32,0.71]
[1755159051409,0.06,204.35,204.31,30.89448795]
[1755159052004,0.06,204.35,204.32,0.71]
[1755159052216,0.06,204.35,204.3,4.8947626]
[1755159052419,0.06,204.35,204.29,26.71]
[1755159052420,0.06,204.35,204.29,31.6049851]
[1755159052592,0.7,204.34,204.29,31.6049851]
[1755159053005,0.7,204.33,204.26,4.89570688]
[1755159053216,9.76997505,204.3,204.21,15.10621557]
[1755159053507,0.7,204.3,204.25,0.03]
[1755159053715,37.46,204.29,204.25,0.03]
[1755159054091,38.16,204.29,204.25,0.03]
[1755159054911,47.22997505,204.29,204.25,0.03]
[1755159055114,10.46997505,204.28,204.25,0.03]
[1755159055295,0.7,204.27,204.25,0.03]
[1755159055496,0.7,204.26,204.25,0.03]
[1755159056217,10.46997505,204.26,204.25,0.03]
[1755159056722,25.57619062,204.26,204.25,0.03]
[1755159056900,15.10621557,204.25,204.18,0.03]
[1755159057100,9.76997505,204.19,204.18,0.03]
[1755159057308,37.46,204.19,204.18,0.03]
[1755159058101,38.16,204.19,204.18,0.03]
[1755159060504,127.52997505,204.19,204.18,0.03]
[1755159060704,47.92997505,204.19,204.18,0.03]
[1755159061106,10.46997505,204.19,204.18,0.03]
[1755159061426,0.68,204.24,204.18,0.03]
[1755159061726,0.68,204.28,204.19,0.7]
[1755159061934,0.68,204.31,204.19,0.7]
[1755159062107,37.46,204.27,204.19,0.7]
[1755159062520,37.46,204.27,204.2,4.89715964]
[1755159063325,37.46,204.26,204.21,26.7]
[1755159064414,9.76997505,204.22,204.18,0.03]
[1755159064607,37.46,204.21,204.18,0.03]
[1755159064807,37.46,204.2,204.18,0.03]
[1755159065005,37.46,204.19,204.18,0.03]
[1755159066303,37.46,204.21,204.18,0.73]
[1755159066631,37.46,204.21,204.18,0.03]
[1755159067224,10.44997505,204.2,204.18,0.03]
[1755159067408,9.76997505,204.19,204.18,0.03]
[1755159067614,10.44997505,204.19,204.18,0.03]
[1755159067822,0.68,204.19,204.18,0.03]
[1755159068021,10.44997505,204.19,204.18,0.03]
[1755159069215,47.88997505,204.19,204.18,0.03]
[1755159069608,88.99619062,204.19,204.18,0.03]
[1755159070020,67.05773108,204.19,204.18,0.03]
[1755159070222,30.74154046,204.19,204.18,0.03]
[1755159070530,73.88997505,204.19,204.18,0.03]
[1755159075535,26.0,204.19,204.18,0.03]
[1755159075717,63.44,204.19,204.18,0.03]
[1755159076035,73.20997505,204.19,204.18,0.03]
[1755159076225,47.20997505,204.19,204.18,0.03]
[1755159079039,41.10621557,204.16,204.15,0.03]
[1755159079239,88.31619062,204.16,204.15,0.03]
[1755159079430,88.99619062,204.16,204.15,0.03]
[1755159080133,93.05773108,204.16,204.15,0.03]
[1755159080451,19.16775603,204.15,204.13,0.03]
[1755159080604,52.54621557,204.14,204.13,0.03]
[1755159080934,78.68057952,204.14,204.13,0.03]
[1755159082619,41.24057952,204.14,204.13,0.03]
[1755159082817,117.02,204.14,204.13,0.03]
[1755159083337,138.41282349,204.14,204.13,0.03]
[1755159084443,117.02,204.14,204.13,0.03]
[1755159085129,147.60621557,204.18,204.13,0.73]
[1755159085130,248.59903906,204.18,204.13,0.73]
[1755159085315,37.42,204.17,204.13,0.03]
[1755159085713,79.6,204.18,204.14,0.7]
[1755159085923,37.42,204.17,204.15,0.7]
[1755159086239,37.42,204.16,204.13,4.92882483]
[1755159086413,37.42,204.15,204.13,4.92882483]
[1755159086613,37.42,204.15,204.14,0.7]
[1755159087211,21.39282349,204.25,204.15,4.89835904]
[1755159087414,37.42,204.24,204.16,0.7]
[1755159088823,37.42,204.24,204.18,26.0]
[1755159089017,37.42,204.24,204.19,0.7]
[1755159089319,0.06,204.28,204.24,26.0]
[1755159089553,37.42,204.27,204.25,0.7]
[1755159089726,37.42,204.27,204.24,26.0]
[1755159089937,37.42,204.27,204.26,0.7]
[1755159090833,0.06,204.28,204.26,0.7]
[1755159091440,0.06,204.28,204.27,4.89548147]
[1755159091639,0.06,204.28,204.27,31.59548147]
[1755159092835,0.06,204.28,204.27,0.7]
[1755159093147,0.06,204.28,204.24,31.59615897]
[1755159093447,37.4,204.27,204.24,4.89615897]
[1755159093753,37.4,204.27,204.25,0.7]
[1755159093934,37.4,204.27,204.26,0.7]
[1755159095047,0.06,204.28,204.27,26.0]
[1755159095234,0.06,204.28,204.27,26.7]
[1755159095440,0.06,204.28,204.27,31.59548147]
[1755159097034,1e-08,204.28,204.27,46.70169704]
[1755159097232,1e-08,204.3,204.28,15.10621557]
[1755159097549,0.06,204.32,204.31,41.10621557]
[1755159097730,0.06,204.33,204.31,42.29566787]
[1755159098049,0.06,204.37,204.32,15.80621557]
[1755159098227,0.06,204.37,204.33,16.29561996]
[1755159098429,0.06,204.37,204.34,15.80621557]
[1755159099037,0.06,204.37,204.34,15.10621557]
[1755159099248,0.06,204.37,204.34,15.80621557]
[1755159100134,0.06,204.37,204.34,20.70002001]
[1755159100559,0.06,204.37,204.34,5.59380444]
[1755159100927,0.06,204.37,204.34,4.89380444]
[1755159103850,0.06,204.37,204.34,5.59380444]
[1755159104234,0.06,204.37,204.34,20.70002001]
[1755159107655,0.06,204.37,204.36,41.10621557]
[1755159107960,0.06,204.37,204.36,41.80621557]
[1755159109242,1e-08,204.37,204.36,41.80621557]
[1755159109646,1e-08,204.37,204.36,46.69954107]
[1755159112163,1e-08,204.37,204.36,45.99954107]
[1755159112458,1e-08,204.37,204.36,41.31498861]
[1755159112641,1e-08,204.37,204.36,42.01498861]
[1755159113044,1e-08,204.37,204.36,41.31498861]
[1755159113245,1e-08,204.37,204.36,26.20877304]
[1755159113462,1e-08,204.37,204.36,52.20877304]
[1755159114353,1e-08,204.37,204.36,47.31544754]
[1755159115360,1e-08,204.37,204.36,52.20877304]
[1755159116550,1e-08,204.37,204.36,67.31498861]
[1755159116758,1e-08,204.37,204.36,42.01498861]
[1755159118341,1e-08,204.37,204.36,79.29498861]
[1755159118648,1e-08,204.39,204.38,41.10621557]
[1755159118973,1e-08,204.4,204.39,41.10621557]
[1755159119170,1e-08,204.4,204.39,99.70166311]
[1755159119340,1e-08,204.4,204.39,100.40166311]
[1755159120170,1e-08,204.4,204.39,67.31427038]
[1755159120855,0.66000001,204.4,204.39,47.31544754]
[1755159121070,0.66000001,204.4,204.32,37.26]
[1755159121254,0.66000001,204.4,204.36,21.31544754]
[1755159121564,1e-08,204.4,204.38,21.31544754]
[1755159121746,0.66000001,204.4,204.38,21.31544754]
[1755159122451,1e-08,204.4,204.39,21.31544754]
[1755159123442,1e-08,204.4,204.39,26.20805481]
[1755159124760,1e-08,204.4,204.34,21.31544754]
[1755159124761,21.97544755,204.4,204.34,21.31544754]
[1755159124965,0.66,204.39,204.32,21.31544754]
[1755159125161,21.97544754,204.39,204.35,26.0]
[1755159125375,21.97544754,204.39,204.27,12.26850357]
[1755159125376,21.31544754,204.36,204.27,0.03]
[1755159125576,21.31544754,204.3,204.27,0.03]
[1755159125779,21.31544754,204.28,204.27,0.03]
[1755159125956,21.31544754,204.24,204.17,21.31544754]
[1755159126274,21.97544754,204.23,204.16,21.31544754]
[1755159126449,21.97544754,204.23,204.19,26.0]
[1755159126648,21.97544754,204.22,204.13,0.03]
[1755159126855,21.31544754,204.18,204.13,0.03]
[1755159127066,21.31544754,204.16,204.13,0.03]
[1755159127267,26.0,204.23,204.13,0.03]
[1755159127268,21.97544754,204.15,204.13,0.03]
[1755159127585,0.66,204.14,204.13,0.03]
[1755159127947,0.66,204.18,204.13,21.34544754]
[1755159128150,0.66,204.18,204.15,21.31544754]
[1755159128353,0.66,204.18,204.16,21.31544754]
[1755159128664,0.66,204.18,204.15,21.31544754]
[1755159129168,37.24,204.2,204.17,21.31544754]
[1755159129371,37.9,204.2,204.17,21.31544754]
[1755159129559,37.9,204.2,204.18,4.89763933]
[1755159129763,37.24,204.23,204.19,21.31544754]
[1755159129962,0.66,204.22,204.19,21.31544754]
[1755159130173,37.24,204.23,204.19,21.31544754]
[1755159130485,0.66,204.25,204.21,21.31544754]
[1755159130652,0.66,204.24,204.21,21.31544754]
[1755159131076,37.24,204.26,204.23,21.31544754]
[1755159131391,0.66,204.25,204.21,26.0]
[1755159131673,0.66,204.25,204.21,26.21236428]
[1755159131852,0.66,204.28,204.23,21.31544754]
[1755159132054,3.89131268,204.35,204.21,4.89691674]
[1755159132055,37.24,204.3,204.26,21.31544754]
[1755159132252,0.66,204.3,204.27,21.31544754]
[1755159132471,0.66,204.3,204.26,21.31544754]
[1755159132665,37.24,204.32,204.29,21.31544754]
[1755159132861,37.9,204.32,204.29,21.31544754]
[1755159133555,37.24,204.32,204.3,26.21021014]
[1755159133761,37.24,204.34,204.31,21.31544754]
[1755159134077,37.9,204.34,204.31,21.31544754]
[1755159134597,1e-08,204.4,204.33,21.31544754]
[1755159134758,37.24,204.39,204.37,21.31544754]
[1755159135069,0.66,204.38,204.33,26.0]
[1755159135470,0.66,204.38,204.3,4.8947626]
[1755159135471,21.31544754,204.36,204.3,21.31544754]
[1755159135878,37.24,204.35,204.31,21.31544754]
[1755159136083,37.9,204.35,204.31,21.31544754]
[1755159136277,0.66,204.34,204.29,26.0]
[1755159136484,0.66,204.34,204.3,21.31544754]
[1755159136668,0.66,204.34,204.32,21.31544754]
[1755159136870,0.66,204.34,204.31,21.31544754]
[1755159137195,37.24,204.35,204.33,21.31544754]
[1755159137360,37.24,204.35,204.32,21.31544754]
[1755159137782,37.24,204.35,204.33,21.31544754]
[1755159138182,37.24,204.35,204.31,4.89450859]
[1755159138361,0.66,204.34,204.3,26.0]
[1755159138695,37.24,204.35,204.31,21.31544754]
[1755159138866,37.24,204.35,204.32,21.31544754]
[1755159139271,37.9,204.35,204.32,21.31544754]
[1755159139472,37.24,204.35,204.32,21.31544754]
[1755159139706,37.24,204.35,204.31,21.31544754]
[1755159140003,21.97544754,204.38,204.32,21.31544754]
[1755159140189,37.22,204.34,204.32,21.31544754]
[1755159140390,37.22,204.34,204.31,21.31544754]
[1755159140878,37.22,204.34,204.32,21.31544754]
[1755159141079,0.66000001,204.4,204.33,22.03544754]
[1755159141380,37.22,204.39,204.36,21.31544754]
[1755159141791,37.88,204.39,204.36,21.31544754]
[1755159141984,37.22,204.39,204.36,26.20872864]
[1755159142298,37.22,204.39,204.37,21.31544754]
[1755159143195,37.22,204.39,204.38,21.31544754]
[1755159143373,37.22,204.39,204.36,21.31544754]
[1755159143582,37.88,204.39,204.36,21.31544754]
[1755159143771,37.22,204.39,204.36,21.31544754]
[1755159143967,37.22,204.39,204.31,0.72]
[1755159143968,0.66,204.38,204.31,47.31544754]
[1755159144270,0.66,204.38,204.3,21.31544754]
[1755159144476,21.97544754,204.38,204.31,21.31544754]
[1755159144689,21.97544754,204.38,204.32,21.31544754]
[1755159144887,37.2,204.37,204.36,21.31544754]
[1755159145306,37.86,204.37,204.32,47.31544754]
[1755159145503,0.66,204.36,204.31,21.31544754]
[1755159145876,0.66,204.35,204.3,26.0]
[1755159146076,21.31544754,204.33,204.27,21.31544754]
[1755159146385,37.2,204.32,204.28,47.31544754]
[1755159146582,37.2,204.32,204.28,48.03544754]
[1755159146790,37.2,204.32,204.28,47.31544754]
[1755159146978,37.86,204.32,204.28,26.0]
[1755159147515,0.66,204.31,204.26,21.31544754]
[1755159147803,0.66,204.31,204.25,21.31544754]
[1755159147975,0.66,204.31,204.26,21.31544754]
[1755159148999,37.2,204.3,204.27,21.31544754]
[1755159149189,37.2,204.29,204.27,21.31544754]
[1755159150501,37.2,204.29,204.28,21.31544754]
[1755159151089,37.2,204.29,204.27,26.86091376]
[1755159151280,37.2,204.29,204.27,21.96544754]
[1755159151678,37.2,204.29,204.26,21.31544754]
[1755159152494,37.2,204.29,204.25,21.31544754]
[1755159152787,37.2,204.29,204.24,47.34544754]
[1755159152788,37.91,204.29,204.24,47.34544754]
[1755159152983,37.2,204.29,204.24,0.03]